fUST/lending_fUST_20250812
["ID","MTS","AMOUNT","RATE_DAILY","PERIOD"]
[378657816,1754946638472,-460.0,0.00019178,2]
[378657818,1754946638482,-460.0,0.00019178,2]
[378657820,1754946638491,-460.0,0.00019178,2]
[378657822,1754946638501,-460.0,0.00019178,2]
[378657824,1754946638510,-460.0,0.00019178,2]
[378657826,1754946638519,-483.5,0.00019178,2]
[378657828,1754946638528,-460.0,0.00019178,2]
[378657830,1754946638537,-460.0,0.00019178,2]
[378657832,1754946638546,-466.55656139,0.00019178,2]
[378657834,1754946638555,-460.0,0.00019178,2]
[378657836,1754946638564,-460.0,0.00019178,2]
[378657838,1754946638573,-460.0,0.00019178,2]
[378657840,1754946638583,-460.0,0.00019178,2]
[378657842,1754946638592,-651.56,0.00019178,2]
[378657844,1754946638602,-460.0,0.00019178,2]
[378657846,1754946638611,-460.0,0.00019178,2]
[378657848,1754946638619,-460.0,0.00019178,2]
[378657850,1754946638629,-460.0,0.00019178,2]
[378657852,1754946638637,-460.0,0.00019178,2]
[378657854,1754946638647,-460.0,0.00019178,2]
[378657856,1754946638656,-460.0,0.00019178,2]
[378657858,1754946638666,-460.0,0.00019178,2]
[378657860,1754946638675,-460.0,0.00019178,2]
[378657862,1754946638685,-460.0,0.00019178,2]
[378657864,1754946638694,-460.0,0.00019178,2]
[378657866,1754946638704,-460.0,0.00019178,2]
[378657868,1754946638713,-460.0,0.00019178,2]
[378657869,1754946638722,-993.38,0.00019178,2]
[378657871,1754946638731,-460.0,0.00019178,2]
[378657873,1754946638739,-2826.73,0.00019178,2]
[378657875,1754946638748,-460.0,0.00019178,2]
[378657877,1754946638762,-460.0,0.00019178,2]
[378657879,1754946638771,-460.0,0.00019178,2]
[378657881,1754946638780,-460.0,0.00019178,2]
[378657883,1754946638790,-540.56,0.00019178,2]
[378657885,1754946638801,-460.0,0.00019178,2]
[378657887,1754946638810,-460.0,0.00019178,2]
[378657889,1754946638819,-460.0,0.00019178,2]
[378657891,1754946638829,-460.0,0.00019178,2]
[378657893,1754946638838,-460.0,0.00019178,2]
[378657895,1754946638848,-3530.92,0.00019178,2]
[378657897,1754946638857,-2878.97,0.00019178,2]
[378657899,1754946638866,-460.0,0.00019178,2]
[378657901,1754946638875,-968.38,0.00019178,2]
[378657903,1754946638884,-460.0,0.00019178,2]
[378657905,1754946638893,-460.0,0.00019178,2]
[378657907,1754946638903,-460.0,0.00019178,2]
[378657909,1754946638912,-721.19,0.00019178,2]
[378657911,1754946638921,-460.0,0.00019178,2]
[378657913,1754946638931,-460.0,0.00019178,2]
[378657915,1754946638940,-527.68955278,0.00019178,2]
[378657917,1754946638949,-1943.09,0.00019178,2]
[378657919,1754946638959,-460.0,0.00019178,2]
[378657921,1754946638968,-460.0,0.00019178,2]
[378657923,1754946638977,-460.0,0.00019178,2]
[378657925,1754946638986,-1091.17,0.00019178,2]
[378657927,1754946638995,-466.22,0.00019178,2]
[378657929,1754946639004,-695.46,0.00019178,2]
[378657931,1754946639014,-460.0,0.00019178,2]
[378657933,1754946639023,-460.0,0.00019178,2]
[378657935,1754946639033,-463.59382057,0.00019178,2]
[378657937,1754946639042,-460.0,0.00019178,2]
[378657939,1754946639052,-460.0,0.00019178,2]
[378657941,1754946639061,-787.67,0.00019178,2]
[378657943,1754946639070,-460.0,0.00019178,2]
[378657945,1754946639079,-460.0,0.00019178,2]
[378657947,1754946639089,-460.0,0.00019178,2]
[378657949,1754946639098,-460.0,0.00019178,2]
[378657951,1754946639107,-460.0,0.00019178,2]
[378657953,1754946639116,-464.32751877,0.00019178,2]
[378657955,1754946639126,-460.0,0.00019178,2]
[378657957,1754946639135,-460.0,0.00019178,2]
[378657959,1754946639144,-460.0,0.00019178,2]
[378657961,1754946639153,-1353.06,0.00019178,2]
[378657963,1754946639164,-429.81000053,0.00019178,2]
[378657965,1754946639174,-460.0,0.00019178,2]
[378657967,1754946639186,-460.0,0.00019178,2]
[378657969,1754946639197,-1152.41,0.00019178,2]
[378657971,1754946639207,-460.0,0.00019178,2]
[378657973,1754946639216,-460.0,0.00019178,2]
[378657975,1754946639225,-465.5,0.00019178,2]
[378657977,1754946639235,-460.0,0.00019178,2]
[378657979,1754946639244,-576.97,0.00019178,2]
[378657980,1754946639254,-460.0,0.00019178,2]
[378657982,1754946639263,-784.43,0.00019178,2]
[378657984,1754946639273,-523.45823881,0.00019178,2]
[378657987,1754946639282,-460.0,0.00019178,2]
[378657989,1754946639292,-460.0,0.00019178,2]
[378657991,1754946639302,-460.0,0.00019178,2]
[378657993,1754946639311,-311.98,0.00019178,2]
[378657994,1754946639320,-460.0,0.00019178,2]
[378657996,1754946639329,-460.0,0.00019178,2]
[378657998,1754946639339,-460.0,0.00019178,2]
[378658000,1754946639348,-460.0,0.00019178,2]
[378658003,1754946639358,-460.0,0.00019178,2]
[378658005,1754946639367,-460.0,0.00019178,2]
[378658006,1754946639377,-460.0,0.00019178,2]
[378658008,1754946639386,-460.0,0.00019178,2]
[378658010,1754946639396,-460.0,0.00019178,2]
[378658012,1754946639406,-460.0,0.00019178,2]
[378658014,1754946639415,-487.98,0.00019178,2]
[378658016,1754946639425,-460.0,0.00019178,2]
[378658018,1754946639435,-460.0,0.00019178,2]
[378658020,1754946639444,-3972.68,0.00019178,2]
[378658022,1754946639453,-577.42,0.00019178,2]
[378658024,1754946639463,-470.31,0.00019178,2]
[378658026,1754946639472,-460.0,0.00019178,2]
[378658028,1754946639481,-460.0,0.00019178,2]
[378658030,1754946639491,-460.0,0.00019178,2]
[378658032,1754946639500,-460.0,0.00019178,2]
[378658034,1754946639510,-602.64817078,0.00019178,2]
[378658036,1754946639520,-460.0,0.00019178,2]
[378658040,1754946639531,-460.0,0.00019178,2]
[378658042,1754946639540,-460.0,0.00019178,2]
[378658045,1754946639550,-460.0,0.00019178,2]
[378658047,1754946639559,-1499.58,0.00019178,2]
[378658049,1754946639568,-460.0,0.00019178,2]
[378658051,1754946639577,-460.0,0.00019178,2]
[378658053,1754946639586,-460.0,0.00019178,2]
[378658055,1754946639595,-568.28,0.00019178,2]
[378658057,1754946639605,-460.0,0.00019178,2]
[378658059,1754946639614,-460.0,0.00019178,2]
[378658061,1754946639623,-72.817716,0.00019178,2]
[378658064,1754946639639,-387.182284,0.00019178,2]
[378658080,1754946639848,-766.86,0.00019178,2]
[378658083,1754946639858,-460.0,0.00019178,2]
[378658085,1754946639867,-460.0,0.00019178,2]
[378658087,1754946639877,-465.54300267,0.00019178,2]
[378658089,1754946639886,-460.0,0.00019178,2]
[378658091,1754946639895,-460.0,0.00019178,2]
[378658093,1754946639904,-460.0,0.00019178,2]
[378658095,1754946639913,-460.0,0.00019178,2]
[378658097,1754946639923,-460.0,0.00019178,2]
[378658099,1754946639932,-460.0,0.00019178,2]
[378658101,1754946639941,-460.0,0.00019178,2]
[378658102,1754946639950,-460.0,0.00019178,2]
[378658104,1754946639959,-460.0,0.00019178,2]
[378658106,1754946639969,-855.71,0.00019178,2]
[378658108,1754946639978,-460.0,0.00019178,2]
[378658110,1754946639987,-460.0,0.00019178,2]
[378658112,1754946639996,-713.89,0.00019178,2]
[378658114,1754946640005,-460.0,0.00019178,2]
[378658116,1754946640014,-460.0,0.00019178,2]
[378658118,1754946640024,-900.81,0.00019178,2]
[378658120,1754946640033,-460.0,0.00019178,2]
[378658123,1754946640042,-460.0,0.00019178,2]
[378658125,1754946640052,-460.0,0.00019178,2]
[378658127,1754946640061,-460.0,0.00019178,2]
[378658129,1754946640070,-814.12,0.00019178,2]
[378658131,1754946640079,-483.3,0.00019178,2]
[378658133,1754946640088,-460.0,0.00019178,2]
[378658134,1754946640097,-268.2110523,0.00019178,2]
[378658136,1754946640106,-460.0,0.00019178,2]
[378658139,1754946640116,-460.0,0.00019178,2]
[378658141,1754946640125,-460.0,0.00019178,2]
[378658142,1754946640134,-460.0,0.00019178,2]
[378658144,1754946640143,-585.87,0.00019178,2]
[378658146,1754946640152,-460.0,0.00019178,2]
[378658148,1754946640161,-460.0,0.00019178,2]
[378658150,1754946640170,-570.02383383,0.00019178,2]
[378658153,1754946640180,-2959.83,0.00019178,2]
[378658155,1754946640190,-460.0,0.00019178,2]
[378658157,1754946640199,-460.0,0.00019178,2]
[378658159,1754946640208,-460.0,0.00019178,2]
[378658161,1754946640217,-460.0,0.00019178,2]
[378658162,1754946640226,-165.67221743,0.00019178,2]
[378658165,1754946640235,-460.0,0.00019178,2]
[378658167,1754946640244,-1145.75,0.00019178,2]
[378658169,1754946640253,-460.0,0.00019178,2]
[378658170,1754946640262,-460.0,0.00019178,2]
[378658172,1754946640271,-562.29578521,0.00019178,2]
[378658174,1754946640280,-460.0,0.00019178,2]
[378658176,1754946640289,-1058.27,0.00019178,2]
[378658178,1754946640298,-460.0,0.00019178,2]
[378658180,1754946640307,-460.0,0.00019178,2]
[378658182,1754946640316,-460.0,0.00019178,2]
[378658184,1754946640325,-460.0,0.00019178,2]
[378658186,1754946640334,-460.0,0.00019178,2]
[378658188,1754946640343,-460.0,0.00019178,2]
[378658190,1754946640354,-460.0,0.00019178,2]
[378658192,1754946640363,-460.0,0.00019178,2]
[378658195,1754946640372,-500.0,0.00019178,2]
[378658196,1754946640381,-460.0,0.00019178,2]
[378658199,1754946640390,-486.21,0.00019178,2]
[378658200,1754946640399,-460.0,0.00019178,2]
[378658203,1754946640408,-460.0,0.00019178,2]
[378658204,1754946640417,-460.0,0.00019178,2]
[378658207,1754946640426,-460.0,0.00019178,2]
[378658208,1754946640436,-460.0,0.00019178,2]
[378658210,1754946640445,-460.0,0.00019178,2]
[378658212,1754946640454,-460.0,0.00019178,2]
[378658214,1754946640463,-460.0,0.00019178,2]
[378658216,1754946640472,-460.0,0.00019178,2]
[378658218,1754946640481,-2467.96,0.00019178,2]
[378658220,1754946640490,-653.68,0.00019178,2]
[378658223,1754946640500,-460.0,0.00019178,2]
[378658225,1754946640509,-640.39,0.00019178,2]
[378658227,1754946640521,-1195.65,0.00019178,2]
[378658229,1754946640530,-460.0,0.00019178,2]
[378658231,1754946640539,-460.0,0.00019178,2]
[378658233,1754946640548,-460.0,0.00019178,2]
[378658235,1754946640557,-460.0,0.00019178,2]
[378658237,1754946640567,-895.6,0.00019178,2]
[378658239,1754946640576,-460.0,0.00019178,2]
[378658241,1754946640585,-460.0,0.00019178,2]
[378658243,1754946640594,-480.02,0.00019178,2]
[378658245,1754946640603,-460.0,0.00019178,2]
[378658247,1754946640612,-2666.74,0.00019178,2]
[378658249,1754946640621,-460.0,0.00019178,2]
[378658251,1754946640630,-1188.01,0.00019178,2]
[378658253,1754946640639,-439.0,0.00019178,2]
[378658255,1754946640649,-475.56,0.00019178,2]
[378658257,1754946640658,-460.0,0.00019178,2]
[378658259,1754946640667,-460.0,0.00019178,2]
[378658261,1754946640676,-3247.31,0.00019178,2]
[378658263,1754946640686,-562.2,0.00019178,2]
[378658265,1754946640695,-604.66,0.00019178,2]
[378658267,1754946640704,-1242.77,0.00019178,2]
[378658269,1754946640713,-460.0,0.00019178,2]
[378658271,1754946640723,-1664.16,0.00019178,2]
[378658272,1754946640732,-460.0,0.00019178,2]
[378658274,1754946640742,-1399.2,0.00019178,2]
[378658277,1754946640753,-1863.97,0.00019178,2]
[378658279,1754946640764,-460.0,0.00019178,2]
[378658281,1754946640773,-460.0,0.00019178,2]
[378658283,1754946640782,-666.63,0.00019178,2]
[378658285,1754946640792,-733.56,0.00019178,2]
[378658287,1754946640802,-460.0,0.00019178,2]
[378658289,1754946640811,-1125.6,0.00019178,2]
[378658291,1754946640821,-460.0,0.00019178,2]
[378658293,1754946640832,-460.0,0.00019178,2]
[378658295,1754946640841,-460.0,0.00019178,2]
[378658297,1754946640851,-460.0,0.00019178,2]
[378658299,1754946640861,-460.0,0.00019178,2]
[378658301,1754946640870,-460.0,0.00019178,2]
[378658303,1754946640879,-2147.95,0.00019178,2]
[378658305,1754946640888,-4892.3,0.00019178,2]
[378658307,1754946640897,-1197.93,0.00019178,2]
[378658309,1754946640906,-472.74049455,0.00019178,2]
[378658311,1754946640915,-460.0,0.00019178,2]
[378658313,1754946640924,-460.0,0.00019178,2]
[378658315,1754946640934,-2378.24,0.00019178,2]
[378658317,1754946640943,-460.0,0.00019178,2]
[378658319,1754946640952,-508.94473862,0.00019178,2]
[378658321,1754946640962,-460.0,0.00019178,2]
[378658323,1754946640972,-690.95,0.00019178,2]
[378658325,1754946640981,-460.0,0.00019178,2]
[378658327,1754946640991,-1103.24,0.00019178,2]
[378658329,1754946641000,-460.0,0.00019178,2]
[378658331,1754946641010,-460.0,0.00019178,2]
[378658333,1754946641019,-591.26,0.00019178,2]
[378658335,1754946641028,-460.0,0.00019178,2]
[378658337,1754946641037,-1588.79,0.00019178,2]
[378658339,1754946641047,-460.0,0.00019178,2]
[378658341,1754946641056,-460.0,0.00019178,2]
[378658343,1754946641065,-1716.53,0.00019178,2]
[378658345,1754946641074,-460.0,0.00019178,2]
[378658347,1754946641084,-460.0,0.00019178,2]
[378658349,1754946641094,-460.0,0.00019178,2]
[378658351,1754946641103,-889.49,0.00019178,2]
[378658353,1754946641112,-460.0,0.00019178,2]
[378658355,1754946641121,-460.0,0.00019178,2]
[378658357,1754946641130,-392.26436379,0.00019178,2]
[378658359,1754946641139,-460.0,0.00019178,2]
[378658361,1754946641148,-1310.22,0.00019178,2]
[378658363,1754946641158,-460.0,0.00019178,2]
[378658365,1754946641167,-975.45,0.00019178,2]
[378658367,1754946641176,-460.02790009,0.00019178,2]
[378658369,1754946641185,-469.68858347,0.00019178,2]
[378658371,1754946641193,-460.0,0.00019178,2]
[378658373,1754946641203,-460.0,0.00019178,2]
[378658375,1754946641212,-465.32414651,0.00019178,2]
[378658377,1754946641221,-460.0,0.00019178,2]
[378658379,1754946641230,-776.27,0.00019178,2]
[378658381,1754946641239,-671.95,0.00019178,2]
[378658383,1754946641248,-460.0,0.00019178,2]
[378658385,1754946641257,-603.91,0.00019178,2]
[378658387,1754946641266,-460.0,0.00019178,2]
[378658389,1754946641275,-460.0,0.00019178,2]
[378658391,1754946641290,-460.0,0.00019178,2]
[378658393,1754946641299,-629.17,0.00019178,2]
[378658395,1754946641308,-4813.27,0.00019178,2]
[378658397,1754946641317,-460.0,0.00019178,2]
[378658399,1754946641326,-460.0,0.00019178,2]
[378658401,1754946641336,-460.0,0.00019178,2]
[378658403,1754946641346,-460.0,0.00019178,2]
[378658405,1754946641355,-460.0,0.00019178,2]
[378658407,1754946641365,-460.0,0.00019178,2]
[378658409,1754946641374,-460.0,0.00019178,2]
[378658411,1754946641383,-460.0,0.00019178,2]
[378658413,1754946641392,-1106.98,0.00019178,2]
[378658415,1754946641401,-601.37861042,0.00019178,2]
[378658417,1754946641411,-460.0,0.00019178,2]
[378658419,1754946641420,-460.0,0.00019178,2]
[378658421,1754946641430,-2079.28,0.00019178,2]
[378658423,1754946641439,-5478.44,0.00019178,2]
[378658425,1754946641448,-460.0,0.00019178,2]
[378658427,1754946641458,-460.0,0.00019178,2]
[378658429,1754946641467,-468.08551036,0.00019178,2]
[378658431,1754946641476,-460.0,0.00019178,2]
[378658433,1754946641485,-460.0,0.00019178,2]
[378658435,1754946641495,-460.0,0.00019178,2]
[378658437,1754946641504,-680.15,0.00019178,2]
[378658439,1754946641514,-460.0,0.00019178,2]
[378658441,1754946641523,-460.0,0.00019178,2]
[378658443,1754946641532,-460.61100281,0.00019178,2]
[378658445,1754946641541,-460.0,0.00019178,2]
[378658447,1754946641551,-1393.5,0.00019178,2]
[378658449,1754946641561,-460.0,0.00019178,2]
[378658451,1754946641570,-567.17,0.00019178,2]
[378658452,1754946641579,-1301.23,0.00019178,2]
[378658455,1754946641588,-460.0,0.00019178,2]
[378658456,1754946641598,-352.33782842,0.00019178,2]
[378658459,1754946641607,-460.0,0.00019178,2]
[378658461,1754946641617,-460.0,0.00019178,2]
[378658463,1754946641636,-460.0,0.00019178,2]
[378658465,1754946641646,-460.0,0.00019178,2]
[378658467,1754946641655,-1169.56,0.00019178,2]
[378658469,1754946641673,-460.0,0.00019178,2]
[378658471,1754946641682,-460.0,0.00019178,2]
[378658473,1754946641692,-460.0,0.00019178,2]
[378658475,1754946641701,-3786.63,0.00019178,2]
[378658477,1754946641710,-654.9,0.00019178,2]
[378658479,1754946641719,-849.5,0.00019178,2]
[378658481,1754946641728,-460.0,0.00019178,2]
[378658483,1754946641737,-460.0,0.00019178,2]
[378658485,1754946641746,-460.0,0.00019178,2]
[378658487,1754946641759,-460.0,0.00019178,2]
[378658489,1754946641768,-793.48,0.00019178,2]
[378658491,1754946641777,-460.0,0.00019178,2]
[378658493,1754946641786,-460.0,0.00019178,2]
[378658495,1754946641797,-460.0,0.00019178,2]
[378658497,1754946641806,-618.86,0.00019178,2]
[378658499,1754946641816,-460.0,0.00019178,2]
[378658500,1754946641825,-914.4,0.00019178,2]
[378658503,1754946641835,-460.0,0.00019178,2]
[378658505,1754946641845,-2554.36,0.00019178,2]
[378658507,1754946641854,-508.56,0.00019178,2]
[378658508,1754946641864,-930.95,0.00019178,2]
[378658511,1754946641873,-460.0,0.00019178,2]
[378658513,1754946641883,-460.0,0.00019178,2]
[378658515,1754946641892,-1231.57,0.00019178,2]
[378658517,1754946641903,-562.86,0.00019178,2]
[378658519,1754946641912,-565.94,0.00019178,2]
[378658521,1754946641920,-460.0,0.00019178,2]
[378658522,1754946641930,-553.8,0.00019178,2]
[378658525,1754946641940,-561.22,0.00019178,2]
[378658527,1754946641949,-465.05429861,0.00019178,2]
[378658529,1754946641958,-13452.62,0.00019178,2]
[378658531,1754946641968,-460.0,0.00019178,2]
[378658533,1754946641977,-1383.0,0.00019178,2]
[378658535,1754946641986,-1843.68,0.00019178,2]
[378658537,1754946641996,-460.0,0.00019178,2]
[378658539,1754946642005,-460.0,0.00019178,2]
[378658541,1754946642013,-1203.26,0.00019178,2]
[378658543,1754946642022,-460.0,0.00019178,2]
[378658545,1754946642031,-460.0,0.00019178,2]
[378658547,1754946642041,-1432.0,0.00019178,2]
[378658549,1754946642050,-3698.1,0.00019178,2]
[378658551,1754946642059,-460.0,0.00019178,2]
[378658553,1754946642068,-460.0,0.00019178,2]
[378658555,1754946642077,-471.1,0.00019178,2]
[378658557,1754946642086,-500.0,0.00019178,2]
[378658559,1754946642095,-446.17090379,0.00019178,2]
[378658561,1754946642104,-460.0,0.00019178,2]
[378658562,1754946642113,-500.0,0.00019178,2]
[378658564,1754946642123,-500.0,0.00019178,2]
[378658567,1754946642132,-460.0,0.00019178,2]
[378658569,1754946642142,-460.0,0.00019178,2]
[378658571,1754946642151,-668.64,0.00019178,2]
[378658573,1754946642160,-460.0,0.00019178,2]
[378658575,1754946642169,-297.47421785,0.00019178,2]
[378658577,1754946642179,-460.0,0.00019178,2]
[378658579,1754946642188,-460.0,0.00019178,2]
[378658581,1754946642197,-912.56,0.00019178,2]
[378658582,1754946642206,-460.0,0.00019178,2]
[378658585,1754946642216,-460.0,0.00019178,2]
[378658586,1754946642225,-4090.29,0.00019178,2]
[378658589,1754946642234,-460.0,0.00019178,2]
[378658591,1754946642244,-460.0,0.00019178,2]
[378658593,1754946642253,-460.0,0.00019178,2]
[378658595,1754946642262,-460.0,0.00019178,2]
[378658596,1754946642271,-500.0,0.00019178,2]
[378658598,1754946642280,-666.0,0.00019178,2]
[378658600,1754946642289,-5000.0,0.00019178,2]
[378658603,1754946642298,-5000.0,0.00019178,2]
[378658605,1754946642307,-1000.0,0.00019268,5]
[378658607,1754946642316,-1271.1129632,0.00019284,2]
[378658608,1754946642325,-60671.49674526,0.00019329,2]
[378658610,1754946642334,-12671.21867243,0.00019401,2]
[378658612,1754946642343,-231.9940742,0.00019401,2]
[378658614,1754946642353,-843.18994796,0.00019401,2]
[378658616,1754946642362,-461.69158338,0.00019401,2]
[378658618,1754946642372,-160.0,0.00019401,2]
[378658620,1754946642381,-417.15472785,0.00019401,2]
[378658623,1754946642391,-160.0,0.00019401,2]
[378658625,1754946642400,-160.0,0.00019401,2]
[378658627,1754946642409,-215.4905783,0.00019401,2]
[378658628,1754946642418,-160.0,0.00019401,2]
[378658631,1754946642427,-160.0,0.00019401,2]
[378658632,1754946642437,-160.0,0.00019401,2]
[378658634,1754946642446,-216.68257536,0.00019401,2]
[378658637,1754946642456,-160.0,0.00019401,2]
[378658638,1754946642465,-527.9539256,0.00019401,2]
[378658640,1754946642475,-206.234,0.00019419,2]
[378658643,1754946642484,-179.415,0.00019419,2]
[378658645,1754946642494,-220.611,0.00019419,2]
[378658646,1754946642503,-250.0,0.00019419,2]
[378658648,1754946642513,-152.296,0.00019419,2]
[378658650,1754946642523,-261.02,0.00019419,2]
[378658652,1754946642532,-219.814,0.00019419,2]
[378658654,1754946642541,-971.0,0.00019419,2]
[378658656,1754946642550,-636.0,0.00019419,2]
[378658658,1754946642560,-2151.0,0.00019419,2]
[378658660,1754946642569,-408.0,0.00019419,2]
[378658662,1754946642579,-416.844,0.00019419,2]
[378658664,1754946642588,-460.0,0.00019452,2]
[378658666,1754946642598,-460.0,0.00019452,2]
[378658668,1754946642609,-460.0,0.00019452,2]
[378658670,1754946642619,-460.0,0.00019452,2]
[378658672,1754946642629,-460.0,0.00019452,2]
[378658674,1754946642638,-460.0,0.00019452,2]
[378658676,1754946642647,-460.0,0.00019452,2]
[378658679,1754946642656,-519.57,0.00019452,2]
[378658681,1754946642666,-460.0,0.00019452,2]
[378658683,1754946642675,-460.0,0.00019452,2]
[378658685,1754946642684,-460.0,0.00019452,2]
[378658687,1754946642694,-460.0,0.00019452,2]
[378658689,1754946642704,-460.0,0.00019452,2]
[378658691,1754946642713,-613.44,0.00019452,2]
[378658693,1754946642722,-460.0,0.00019452,2]
[378658695,1754946642731,-460.0,0.00019452,2]
[378658697,1754946642741,-460.0,0.00019452,2]
[378658699,1754946642750,-471.09,0.00019452,2]
[378658701,1754946642763,-460.0,0.00019452,2]
[378658703,1754946642772,-460.0,0.00019452,2]
[378658705,1754946642782,-460.0,0.00019452,2]
[378658707,1754946642791,-460.0,0.00019452,2]
[378658709,1754946642801,-460.0,0.00019452,2]
[378658711,1754946642810,-460.0,0.00019452,2]
[378658713,1754946642819,-460.0,0.00019452,2]
[378658715,1754946642828,-460.0,0.00019452,2]
[378658717,1754946642838,-460.0,0.00019452,2]
[378658719,1754946642848,-562.96,0.00019452,2]
[378658721,1754946642857,-460.0,0.00019452,2]
[378658723,1754946642866,-460.0,0.00019452,2]
[378658725,1754946642876,-460.0,0.00019452,2]
[378658727,1754946642885,-469.0221619,0.00019452,2]
[378658729,1754946642894,-588.98590383,0.00019452,2]
[378658731,1754946642903,-460.0,0.00019452,2]
[378658733,1754946642912,-460.0,0.00019452,2]
[378658735,1754946642922,-532.77418421,0.00019452,2]
[378658737,1754946642931,-460.0,0.00019452,2]
[378658739,1754946642940,-460.0,0.00019452,2]
[378658741,1754946642950,-460.0,0.00019452,2]
[378658743,1754946642959,-460.0,0.00019452,2]
[378658745,1754946642968,-460.0,0.00019452,2]
[378658747,1754946642978,-460.0,0.00019452,2]
[378658749,1754946642987,-460.0,0.00019452,2]
[378658751,1754946642996,-460.0,0.00019452,2]
[378658753,1754946643005,-460.0,0.00019452,2]
[378658755,1754946643014,-460.0,0.00019452,2]
[378658757,1754946643023,-483.5,0.00019452,2]
[378658759,1754946643032,-460.0,0.00019452,2]
[378658761,1754946643042,-460.0,0.00019452,2]
[378658763,1754946643052,-460.0,0.00019452,2]
[378658765,1754946643061,-460.0,0.00019452,2]
[378658767,1754946643071,-460.0,0.00019452,2]
[378658769,1754946643080,-651.56,0.00019452,2]
[378658771,1754946643089,-460.0,0.00019452,2]
[378658773,1754946643099,-460.0,0.00019452,2]
[378658775,1754946643108,-460.0,0.00019452,2]
[378658777,1754946643117,-460.0,0.00019452,2]
[378658779,1754946643126,-485.31770661,0.00019452,2]
[378658781,1754946643136,-460.0,0.00019452,2]
[378658783,1754946643145,-460.0,0.00019452,2]
[378658785,1754946643154,-460.0,0.00019452,2]
[378658787,1754946643163,-460.0,0.00019452,2]
[378658789,1754946643174,-993.38,0.00019452,2]
[378658792,1754946643183,-460.0,0.00019452,2]
[378658795,1754946643192,-2826.73,0.00019452,2]
[378658798,1754946643202,-460.0,0.00019452,2]
[378658801,1754946643211,-460.0,0.00019452,2]
[378658804,1754946643220,-460.0,0.00019452,2]
[378658806,1754946643229,-460.0,0.00019452,2]
[378658808,1754946643239,-540.56,0.00019452,2]
[378658810,1754946643248,-460.0,0.00019452,2]
[378658813,1754946643258,-460.0,0.00019452,2]
[378658814,1754946643267,-460.0,0.00019452,2]
[378658816,1754946643276,-3530.92,0.00019452,2]
[378658818,1754946643286,-2878.97,0.00019452,2]
[378658820,1754946643295,-460.0,0.00019452,2]
[378658822,1754946643305,-968.38,0.00019452,2]
[378658824,1754946643319,-460.0,0.00019452,2]
[378658827,1754946643328,-460.0,0.00019452,2]
[378658829,1754946643338,-721.19,0.00019452,2]
[378658830,1754946643347,-460.0,0.00019452,2]
[378658833,1754946643356,-460.0,0.00019452,2]
[378658834,1754946643365,-1943.09,0.00019452,2]
[378658836,1754946643374,-460.0,0.00019452,2]